bitfinex/quotes_SOLUSD_20250401
["timestamp","ask_amount","ask_price","bid_price","bid_amount"]
[1743506899801,33.81702604,127.65,127.64,232.54]
[1743506901175,33.95918761,127.65,127.64,232.57]
[1743506903688,33.81702604,127.65,127.64,232.57]
[1743506906894,33.81702604,127.65,127.64,225.69]
[1743506907093,33.81702604,127.65,127.64,232.57]
[1743506908290,33.81702604,127.65,127.64,6.91]
[1743506911374,33.81702604,127.65,127.59,5.1603]
[1743506911585,18.64964886,127.64,127.62,225.7]
[1743506911793,7.33347718,127.63,127.62,225.7]
[1743506912576,15.16857718,127.63,127.62,225.7]
[1743506912779,15.16857718,127.63,127.62,232.58]
[1743506914495,7.8345,127.64,127.62,232.58]
[1743506914693,7.33347718,127.63,127.62,232.58]
[1743506917506,7.8345,127.64,127.62,232.58]
[1743506917807,81.763,127.66,127.62,234.0833]
[1743506917808,7.33347718,127.65,127.62,234.0833]
[1743506919514,15.16757718,127.65,127.62,234.0833]
[1743506921390,7.33347718,127.64,127.62,234.0833]
[1743506921900,7.8965,127.66,127.62,241.919]
[1743506922207,7.33347718,127.65,127.62,234.0833]
[1743506924006,7.8345,127.64,127.62,234.0833]
[1743506924408,15.16757718,127.65,127.62,234.0833]
[1743506925705,7.33347718,127.65,127.62,234.0833]
[1743506926003,7.33347718,127.65,127.62,241.9489]
[1743506926211,7.39647718,127.65,127.62,241.9489]
[1743506926607,7.39647718,127.65,127.62,234.1133]
[1743506926913,15.23037718,127.65,127.62,234.1133]
[1743506928390,15.23037718,127.65,127.63,225.68]
[1743506929499,7.39647718,127.65,127.63,225.68]
[1743506936916,7.33347718,127.64,127.63,225.68]
[1743506937311,7.33347718,127.64,127.63,232.56]
[1743506937820,15.16797718,127.64,127.63,232.56]
[1743506940527,7.8345,127.64,127.63,232.56]
[1743506941040,15.23057718,127.65,127.63,232.56]
[1743506941337,0.063,127.65,127.63,232.56]
[1743506941509,0.063,127.65,127.63,240.3948]
[1743506947430,0.063,127.65,127.64,0.28432314]
[1743506948423,0.063,127.65,127.64,8.11882314]
[1743506948824,0.063,127.65,127.64,9.62252314]
[1743506949025,0.063,127.66,127.64,9.62252314]
[1743506950137,0.063,127.65,127.64,9.62252314]
[1743506958041,0.063,127.65,127.64,16.50252314]
[1743506960452,0.063,127.65,127.64,242.10252314]
[1743506962374,0.063,127.66,127.65,20.28432314]
[1743506962566,0.063,127.72,127.69,0.14216157]
[1743506962859,0.063,127.72,127.7,6.88]
[1743506964461,0.063,127.72,127.71,7.8302]
[1743506966252,0.063,127.72,127.71,233.4102]
[1743506966963,0.063,127.72,127.71,233.55236157]
[1743506968870,0.063,127.72,127.71,225.58]
[1743506970967,0.063,127.72,127.71,233.55236157]
[1743506973969,0.063,127.72,127.71,225.58]
[1743506976172,0.063,127.72,127.71,233.55236157]
[1743506980480,0.063,127.72,127.71,225.72216157]
[1743506980870,0.063,127.72,127.71,233.55236157]
[1743506981374,0.063,127.72,127.71,225.72216157]
[1743506981988,0.063,127.72,127.71,233.55236157]
[1743506983391,0.063,127.72,127.71,225.72216157]
[1743506983895,0.063,127.72,127.71,225.58]
[1743506984295,0.063,127.72,127.71,232.46]
[1743506991997,0.063,127.72,127.71,240.2902]
[1743506994487,0.063,127.72,127.71,232.46]
[1743506995917,0.063,127.72,127.71,240.57452314]
[1743506999813,0.063,127.72,127.71,232.46]
[1743507001090,0.063,127.72,127.71,225.58]
[1743507001091,7.39647718,127.72,127.71,225.58]
[1743507001535,26.18828761,127.72,127.68,225.5]
[1743507001724,7.33347718,127.69,127.68,225.5]
[1743507002024,15.16487718,127.69,127.68,225.5]
[1743507002549,7.33347718,127.69,127.68,225.5]
[1743507002844,7.8305,127.71,127.68,232.38]
[1743507003002,7.33347718,127.7,127.68,232.38]
[1743507006842,0.063,127.72,127.7,7.8308]
[1743507007251,0.063,127.72,127.71,0.28432314]
[1743507008247,0.063,127.72,127.71,27.97236157]
[1743507008540,0.063,127.72,127.71,20.0]
[1743507008743,0.063,127.72,127.71,26.88]
[1743507010852,0.063,127.72,127.71,252.4]
[1743507011238,0.063,127.72,127.71,232.4]
[1743507013853,0.063,127.72,127.71,232.54216157]
[1743507014020,0.063,127.72,127.71,240.37236157]
[1743507014648,0.063,127.72,127.71,232.54216157]
[1743507015418,0.063,127.72,127.71,232.4]
[1743507019655,7.39647718,127.72,127.71,232.4]
[1743507019866,15.20907718,127.72,127.71,225.52]
[1743507020030,15.20907718,127.72,127.71,232.4]
[1743507020425,33.85872604,127.72,127.71,232.4]
[1743507020731,33.85872604,127.72,127.7,225.5]
[1743507020938,7.33347718,127.71,127.7,225.5]
[1743507021446,33.81332604,127.71,127.7,225.5]
[1743507021949,33.81332604,127.71,127.7,232.38]
[1743507024048,15.16367718,127.71,127.7,232.38]
[1743507026246,34.73927718,127.71,127.7,225.54]
[1743507026455,135.23108761,127.71,127.66,0.03]
[1743507026654,127.75544886,127.71,127.66,0.03]
[1743507026960,7.33347718,127.68,127.67,225.54]
[1743507027330,7.33347718,127.69,127.67,225.54]
[1743507027658,7.33347718,127.69,127.68,6.88]
[1743507029255,7.33347718,127.7,127.68,6.88]
[1743507029447,15.16427718,127.7,127.68,6.88]
[1743507029764,7.33347718,127.69,127.68,6.88]
[1743507030357,15.16487718,127.69,127.68,6.88]
[1743507030654,7.8314,127.69,127.68,6.88]
[1743507030854,15.16487718,127.69,127.68,6.88]
[1743507032631,7.8314,127.69,127.68,6.88]
[1743507032947,15.16487718,127.69,127.68,6.88]
[1743507039354,15.16487718,127.69,127.67,225.54]
[1743507039545,55.31703476,127.68,127.67,225.6]
[1743507039747,62.82473476,127.68,127.67,225.6]
[1743507039946,62.82473476,127.68,127.66,0.03]
[1743507040140,7.33347718,127.67,127.64,0.03]
[1743507040346,7.33347718,127.65,127.64,0.03]
[1743507040855,7.33347718,127.65,127.64,6.91]
[1743507041154,15.16737718,127.65,127.64,6.91]
[1743507043434,33.81702604,127.65,127.64,0.03]
[1743507043747,33.81702604,127.65,127.64,6.91]
[1743507044457,33.81702604,127.65,127.64,0.03]
[1743507044650,33.81702604,127.65,127.64,6.91]
[1743507046742,33.81702604,127.65,127.64,232.55]
[1743507048142,33.81702604,127.65,127.64,225.67]
[1743507048442,33.81702604,127.65,127.64,232.55]
[1743507049057,33.81702604,127.65,127.63,0.03]
[1743507049244,25.98312604,127.64,127.62,0.03]
[1743507049445,7.33347718,127.63,127.62,0.03]
[1743507050164,15.16857718,127.63,127.62,6.91]
[1743507050461,53.54818761,127.63,127.56,1.654]
[1743507050662,7.33347718,127.58,127.57,6.88]
[1743507052147,15.17167718,127.58,127.54,0.03]
[1743507052354,7.33347718,127.57,127.54,0.03]
[1743507052548,7.33347718,127.57,127.55,6.88]
[1743507053167,7.33347718,127.57,127.54,0.03]
[1743507053463,7.33347718,127.56,127.55,6.88]
[1743507053766,7.33347718,127.57,127.55,6.88]
[1743507054356,15.17247718,127.57,127.55,6.88]
[1743507055348,7.33347718,127.56,127.55,6.88]
[1743507055547,15.17247718,127.57,127.55,6.88]
[1743507056774,15.17247718,127.57,127.56,225.74]
[1743507057974,7.8384,127.58,127.56,225.74]
[1743507058348,15.17137718,127.59,127.56,225.74]
[1743507060074,15.17137718,127.59,127.56,228.1687082]
[1743507060576,7.8379,127.59,127.56,228.1687082]
[1743507060950,15.17067718,127.6,127.56,228.1687082]
[1743507061152,7.8372,127.6,127.56,236.0080082]
[1743507061353,7.33347718,127.6,127.56,236.0080082]
[1743507061860,7.33347718,127.63,127.57,0.28432314]
[1743507062059,7.33347718,127.65,127.6,0.14216157]
[1743507062275,15.23007718,127.66,127.61,6.88]
[1743507062453,7.8963,127.66,127.61,6.88]
[1743507062659,15.22977718,127.66,127.61,6.88]
[1743507063163,15.22977718,127.66,127.61,14.7159]
[1743507063755,15.22977718,127.66,127.61,6.88]
[1743507063956,7.33347718,127.65,127.61,14.7163]
[1743507064381,7.33347718,127.65,127.61,6.88]
[1743507064994,7.33347718,127.65,127.61,14.7162]
[1743507065780,15.16747718,127.65,127.61,14.7162]
[1743507066077,15.16747718,127.65,127.61,6.88]
[1743507066452,7.33347718,127.64,127.61,6.88]
[1743507067779,11.49618118,127.64,127.61,6.88]
[1743507069988,0.063,127.66,127.61,14.7162]
[1743507070960,7.8963,127.66,127.61,14.7162]
[1743507072687,11.55918118,127.66,127.61,14.7162]
[1743507073695,19.39268118,127.66,127.61,14.7162]
[1743507074482,11.49618118,127.65,127.61,6.88]
[1743507074654,11.49618118,127.65,127.62,225.68]
[1743507075072,11.49618118,127.65,127.63,6.88]
[1743507075666,11.55918118,127.66,127.63,6.88]
[1743507075999,11.49618118,127.64,127.63,6.88]
[1743507076393,11.49618118,127.64,127.62,225.68]
[1743507076583,0.063,127.66,127.62,225.68]
[1743507076584,11.49618118,127.63,127.62,225.68]
[1743507076883,11.49618118,127.63,127.62,232.56]
[1743507077288,30.14583004,127.63,127.62,232.56]
[1743507077788,37.98093004,127.63,127.61,225.68]
[1743507077965,11.49618118,127.62,127.61,225.68]
[1743507078385,41.64201122,127.62,127.61,225.68]
[1743507079086,41.64201122,127.62,127.61,232.56]
[1743507079273,41.64201122,127.62,127.56,2.4587082]
[1743507079583,11.49618118,127.59,127.57,6.88]
[1743507079777,7.8382,127.58,127.57,6.88]
[1743507080369,7.8382,127.58,127.56,2.4587082]
[1743507080573,19.33438118,127.58,127.56,2.4587082]
[1743507080889,19.33438118,127.58,127.57,6.88]
[1743507081694,19.33438118,127.58,127.56,2.4587082]
[1743507081879,11.49618118,127.57,127.56,2.4587082]
[1743507082186,11.49618118,127.57,127.56,9.3387082]
[1743507083895,19.33498118,127.57,127.56,9.3387082]
[1743507086791,19.33498118,127.57,127.56,235.0987082]
[1743507087692,15.20582106,127.57,127.56,235.0987082]
[1743507088287,15.20582106,127.57,127.56,6.8800082]
[1743507088288,33.85546992,127.57,127.56,6.8800082]
[1743507088784,15.20582106,127.57,127.56,6.8800082]
[1743507090572,7.8388,127.57,127.56,6.8800082]
[1743507090773,15.20582106,127.57,127.56,6.8800082]
[1743507091071,63.32355416,127.57,127.56,8.2e-06]
[1743507091269,63.32355416,127.57,127.51,0.0001]
[1743507091270,0.28432314,127.52,127.51,0.0001]
[1743507091473,81.84216157,127.51,127.43,225.8]
[1743507091774,81.84216157,127.51,127.44,6.88]
[1743507091775,81.7,127.51,127.44,6.88]
[1743507092098,7.36702106,127.49,127.44,6.88]
[1743507092293,27.4466,127.52,127.44,6.88]
[1743507092501,7.36702106,127.51,127.45,0.28432314]
[1743507093075,7.36702106,127.51,127.45,0.14216157]
[1743507093280,7.36702106,127.5,127.45,0.14216157]
[1743507093490,7.36702106,127.48,127.44,6.88]
[1743507093799,11.5256108,127.48,127.44,6.88]
[1743507094004,11.5256108,127.49,127.44,6.88]
[1743507094304,7.8419,127.52,127.47,20.0]
[1743507094595,11.5256108,127.52,127.48,6.88]
[1743507095404,11.5256108,127.49,127.45,0.14216157]
[1743507095603,11.5256108,127.49,127.46,6.88]
[1743507096113,11.5256108,127.49,127.48,0.03]
[1743507096806,11.5256108,127.5,127.48,0.03]
[1743507096973,11.5256108,127.49,127.48,0.03]
[1743507097177,11.5256108,127.5,127.48,0.03]
[1743507097795,11.5256108,127.51,127.48,0.03]
[1743507097982,11.5256108,127.5,127.48,0.03]
[1743507099504,11.5256108,127.49,127.48,0.03]
[1743507099806,11.5256108,127.49,127.48,6.91]
[1743507100406,11.5256108,127.5,127.48,6.91]
[1743507101109,11.5256108,127.51,127.48,14.7539]
[1743507101309,11.5256108,127.52,127.48,14.7539]
[1743507101509,11.5256108,127.52,127.49,0.14216157]
[1743507102530,11.5256108,127.52,127.5,225.88]
[1743507104399,11.5256108,127.51,127.5,225.88]
[1743507104610,19.3681108,127.51,127.5,225.88]
[1743507104788,19.3681108,127.51,127.5,232.76]
[1743507107392,11.5256108,127.51,127.5,232.76]
[1743507107711,19.3681108,127.51,127.5,232.76]
[1743507108387,19.3681108,127.51,127.5,232.79]
[1743507112118,38.64964886,127.49,127.48,0.03]
[1743507112316,50.17525966,127.49,127.48,6.99]
[1743507112486,50.17525966,127.49,127.45,225.9]
[1743507112683,31.5256108,127.46,127.45,225.9]
[1743507113831,31.5256108,127.46,127.45,232.86]
[1743507114731,39.3711108,127.46,127.45,232.86]
[1743507115544,58.02075966,127.46,127.45,232.86]
[1743507115839,77.63465966,127.46,127.45,232.9]
[1743507116531,96.76417046,127.46,127.36,8.13602314]
[1743507116727,96.76417046,127.46,127.38,0.14216157]
[1743507116728,11.5256108,127.41,127.38,0.14216157]
[1743507116928,19.3743108,127.41,127.38,0.14216157]
[1743507117133,11.5256108,127.4,127.39,225.94]
[1743507117507,30.17525966,127.4,127.39,225.94]
[1743507117729,30.17525966,127.4,127.39,232.9]
[1743507118440,11.5256108,127.4,127.37,225.98]
[1743507118731,46.49954886,127.39,127.38,7.0]
[1743507119032,18.64964886,127.38,127.37,225.98]
[1743507119227,7.8499,127.39,127.37,225.98]
[1743507119406,18.64964886,127.42,127.38,7.0]
[1743507119826,11.5256108,127.39,127.38,7.0]
[1743507121232,38.02515966,127.39,127.38,7.0]
[1743507121412,18.64964886,127.38,127.37,225.98]
[1743507121617,30.17525966,127.38,127.37,233.0]
[1743507121814,11.5256108,127.38,127.37,233.0]
[1743507122425,30.17525966,127.38,127.37,233.0]
[1743507122741,18.64964886,127.38,127.37,233.0]
[1743507122909,30.17525966,127.38,127.37,233.0]
[1743507123111,11.5256108,127.38,127.37,233.0]
[1743507124237,11.5256108,127.39,127.37,233.0]
[1743507124930,18.64964886,127.41,127.37,233.0]
[1743507125137,11.5256108,127.4,127.37,233.0]
[1743507125320,7.8487,127.41,127.37,225.98]
[1743507125520,38.64964886,127.39,127.38,7.0]
[1743507125710,50.17525966,127.39,127.38,7.0]
[1743507128632,58.02525966,127.39,127.38,7.0]
[1743507129014,50.17525966,127.39,127.38,7.0]
[1743507130219,58.02515966,127.39,127.38,7.0]
[1743507130741,31.5256108,127.39,127.38,7.0]
[1743507131050,58.02515966,127.39,127.38,7.0]
[1743507131746,18.64964886,127.42,127.38,14.8504]
[1743507131955,7.8458,127.46,127.38,34.4767]
[1743507132148,7.38486838,127.44,127.38,34.4767]
[1743507133124,7.38486838,127.43,127.38,34.4767]
[1743507133326,7.38486838,127.42,127.38,7.0]
[1743507133546,7.38486838,127.41,127.37,233.8306]
[1743507133726,7.38486838,127.41,127.39,7.04]
[1743507134157,7.38486838,127.4,127.39,7.04]
[1743507134646,26.03451724,127.4,127.39,7.04]
[1743507135766,30.18959928,127.4,127.39,7.04]
[1743507137249,11.53995042,127.4,127.39,7.04]
[1743507137628,19.38915042,127.4,127.39,7.04]
[1743507137844,11.53995042,127.41,127.39,7.04]
[1743507139852,11.53995042,127.42,127.39,7.04]
[1743507140064,11.53995042,127.42,127.39,14.8897]
[1743507140257,30.18959928,127.43,127.39,14.8897]
[1743507140626,11.53995042,127.43,127.39,14.8897]
[1743507140852,7.9101,127.44,127.39,14.8897]
[1743507140853,0.063,127.44,127.39,14.8897]
[1743507141153,11.53995042,127.43,127.39,14.8897]
[1743507141552,11.53995042,127.42,127.37,225.98]
[1743507141739,30.18959928,127.42,127.38,7.02]
[1743507142242,11.53995042,127.41,127.38,7.02]
[1743507143827,19.38895042,127.41,127.38,7.02]
[1743507144228,19.38895042,127.41,127.37,225.98]
[1743507144229,18.64964886,127.4,127.39,7.02]
[1743507144547,30.18959928,127.4,127.39,7.02]
[1743507145062,30.18959928,127.4,127.37,225.98]
[1743507145255,11.53995042,127.39,127.38,7.02]
[1743507145830,7.8499,127.39,127.38,7.02]
[1743507146331,19.38945042,127.4,127.38,7.02]
[1743507146677,0.063,127.41,127.38,14.8703]
[1743507146959,11.60295042,127.41,127.39,7.02]
[1743507147950,20.0,127.4,127.39,7.02]
[1743507149662,27.5335,127.41,127.37,225.98]
[1743507149966,20.0,127.38,127.37,225.98]
[1743507150149,20.0,127.38,127.37,233.0]
[1743507150668,19.38945042,127.4,127.37,233.0]
[1743507151462,7.8495,127.4,127.37,233.0]
[1743507151963,7.9119,127.41,127.37,240.851]
[1743507152151,0.063,127.41,127.37,240.851]
[1743507152772,7.9117,127.41,127.37,240.851]
[1743507153067,0.063,127.41,127.37,240.851]
[1743507153366,19.45155042,127.41,127.37,233.0]
[1743507154867,19.45155042,127.41,127.37,240.851]
[1743507155168,18.64964886,127.4,127.37,233.0]
[1743507155373,19.45155042,127.41,127.37,233.0]
[1743507155563,11.60295042,127.41,127.37,240.851]
[1743507156468,19.45165042,127.41,127.37,240.851]
[1743507157671,15.29580438,127.41,127.37,240.851]
[1743507158268,7.38410438,127.39,127.38,7.0]
[1743507158479,26.03375324,127.4,127.38,7.0]
[1743507159148,15.29580438,127.41,127.38,7.0]
[1743507159345,7.38410438,127.4,127.39,226.1]
[1743507160076,15.23330438,127.4,127.39,226.1]
[1743507161674,7.8492,127.4,127.39,226.1]
[1743507162050,15.23330438,127.4,127.39,226.1]
[1743507162549,7.38410438,127.4,127.39,226.1]
[1743507162748,15.29600438,127.41,127.39,226.1]
[1743507163158,0.063,127.41,127.39,226.1]
[1743507165588,7.44710438,127.41,127.39,226.1]
[1743507168584,0.063,127.41,127.39,226.1]
[1743507169364,0.063,127.41,127.39,233.9497]
[1743507177881,0.063,127.41,127.4,6.94]
[1743507178186,0.063,127.41,127.4,36.63792314]
[1743507178380,0.063,127.44,127.41,0.14216157]
[1743507178794,0.063,127.44,127.41,0.28432314]
[1743507178970,0.063,127.44,127.43,1.94752314]
[1743507180200,0.063,127.44,127.43,9.79492314]
[1743507181380,0.063,127.51,127.46,0.14216157]
[1743507181586,0.063,127.51,127.47,6.96]
[1743507182300,0.063,127.51,127.48,7.98646157]
[1743507182483,0.063,127.51,127.49,1.5998]
[1743507182999,0.063,127.51,127.5,0.14216157]
[1743507183195,0.063,127.51,127.5,4.0721342]
[1743507183396,0.063,127.51,127.5,0.14216157]
[1743507186804,0.063,127.51,127.5,226.10216157]
[1743507188507,7.9055,127.51,127.5,232.9]
[1743507188806,15.28960438,127.51,127.5,232.9]
[1743507189807,33.93925324,127.51,127.5,232.9]
[1743507192011,15.28960438,127.51,127.5,232.9]
[1743507192500,33.93925324,127.51,127.5,232.9]
[1743507196005,20.0,127.48,127.44,0.03]
[1743507196189,7.38410438,127.46,127.45,6.94]
[1743507196585,7.38410438,127.46,127.45,6.92]
[1743507196806,7.38410438,127.46,127.45,232.84]
[1743507197307,20.0,127.48,127.45,232.84]
[1743507197610,7.38410438,127.47,127.45,232.84]
[1743507198109,27.38410438,127.48,127.45,232.84]
[1743507198611,7.38410438,127.47,127.45,232.84]
[1743507200209,15.22910438,127.47,127.45,232.84]
[1743507201498,7.38410438,127.48,127.45,232.84]
[1743507202317,7.8449,127.47,127.45,232.84]
[1743507203005,7.38410438,127.49,127.45,232.84]
[1743507203205,19.6704,127.51,127.45,232.84]
[1743507203206,7.44710438,127.51,127.45,232.84]
[1743507203388,0.063,127.51,127.45,234.3643]
[1743507204406,7.9055,127.51,127.45,242.2105]
[1743507206019,0.063,127.51,127.46,0.14216157]
[1743507206518,0.063,127.51,127.47,7.8449]
[1743507207216,0.063,127.51,127.48,0.14216157]
[1743507207393,0.063,127.51,127.49,6.92]
[1743507208622,0.063,127.51,127.5,7.8431]
[1743507208999,0.063,127.51,127.5,9.71752314]
[1743507209205,0.063,127.53,127.52,0.14216157]
[1743507210520,0.063,127.53,127.52,7.98406157]
[1743507211422,0.063,127.53,127.52,8.12622314]
[1743507212528,7.836,127.62,127.56,0.14216157]
[1743507212715,7.836,127.62,127.57,6.9]
[1743507212917,15.22010438,127.62,127.57,6.9]
[1743507213730,19.33646527,127.62,127.57,6.9]
[1743507215029,11.50046527,127.61,127.57,6.9]
[1743507215211,11.50046527,127.61,127.51,101.7]
[1743507215212,31.50046527,127.58,127.51,101.7]
[1743507215415,11.50046527,127.56,127.52,6.92]
[1743507215614,11.50046527,127.54,127.53,6.92]
[1743507216327,26.48844886,127.57,127.53,6.92]
[1743507216328,11.50046527,127.55,127.53,6.92]
[1743507216707,11.50046527,127.55,127.54,225.84]
[1743507216926,31.50046527,127.55,127.54,225.84]
[1743507217642,39.34046527,127.55,127.54,225.84]
[1743507219830,11.50046527,127.56,127.54,225.84]
[1743507221426,7.8393,127.57,127.54,225.84]
[1743507221630,18.64964886,127.58,127.54,225.84]
[1743507221934,11.50046527,127.57,127.54,225.84]
[1743507224434,19.33916527,127.58,127.54,233.6806]
[1743507224929,19.33916527,127.58,127.54,225.84]
[1743507225234,11.50046527,127.57,127.54,225.84]
[1743507226429,7.8394,127.56,127.55,6.9]
[1743507226631,39.33986527,127.56,127.55,6.9]
[1743507228239,39.40286527,127.56,127.55,6.9]
[1743507229927,39.40286527,127.56,127.55,6.88]
[1743507231521,39.40286527,127.56,127.54,225.84]
[1743507231727,39.40286527,127.56,127.55,6.9]
[1743507232676,27.9024,127.56,127.55,6.9]
[1743507234657,35.26873141,127.56,127.55,6.9]
[1743507235154,15.26873141,127.56,127.55,6.9]
[1743507235336,35.26873141,127.56,127.55,6.9]
[1743507237843,27.9024,127.56,127.55,6.9]
[1743507239846,20.063,127.56,127.55,6.9]
[1743507240048,27.9024,127.56,127.55,6.9]
[1743507240244,27.9024,127.56,127.55,6.93]
[1743507240751,27.9024,127.56,127.55,6.91]
[1743507240952,35.26873141,127.56,127.55,6.91]
[1743507241361,35.26873141,127.56,127.55,232.73]
[1743507246770,54.06054184,127.56,127.55,225.82]
[1743507246951,103.12446748,127.56,127.55,232.7]
[1743507247269,103.12446748,127.56,127.52,0.03]
[1743507247453,7.36633141,127.53,127.52,0.03]
[1743507248266,7.36633141,127.53,127.52,6.91]
[1743507248769,15.20753141,127.53,127.52,6.91]
[1743507249968,19.601,127.55,127.52,6.91]
[1743507249969,7.36633141,127.54,127.52,6.91]
[1743507251175,7.8412,127.53,127.52,6.91]
[1743507251375,7.8412,127.53,127.52,0.03]
[1743507251575,7.8412,127.53,127.52,6.91]
[1743507252961,15.20733141,127.54,127.52,6.91]
[1743507253161,7.841,127.54,127.52,6.91]
[1743507253677,15.20733141,127.54,127.52,6.91]
[1743507253979,7.841,127.54,127.52,6.91]
[1743507255183,53.91868027,127.56,127.52,6.91]
[1743507255678,35.26903141,127.56,127.52,6.91]
[1743507256988,7.36633141,127.55,127.53,225.84]
[1743507258873,7.8406,127.54,127.53,225.84]
[1743507260876,35.26903141,127.56,127.53,225.84]
[1743507262287,27.9027,127.56,127.53,225.84]
[1743507262467,35.26903141,127.56,127.53,225.84]
[1743507262876,0.063,127.56,127.53,233.6811]
[1743507266099,0.063,127.56,127.54,0.14216157]
[1743507266576,0.063,127.56,127.55,20.14216157]
[1743507266777,0.063,127.56,127.55,245.96216157]
[1743507268696,0.063,127.56,127.55,253.80216157]
[1743507269386,0.063,127.56,127.55,27.98216157]
[1743507271774,0.063,127.56,127.55,7.98216157]
[1743507272299,0.063,127.59,127.58,0.14216157]
[1743507272484,0.063,127.59,127.58,7.02216157]
[1743507273483,0.063,127.59,127.58,6.88]
[1743507275101,7.42933141,127.59,127.58,6.88]
[1743507276403,15.26693141,127.59,127.58,6.88]
[1743507276796,15.26693141,127.59,127.58,232.62]
[1743507277491,33.91658027,127.59,127.58,232.62]
[1743507283615,0.063,127.59,127.58,232.62]
[1743507284284,0.063,127.59,127.58,240.4582]
[1743507290913,0.063,127.59,127.58,6.88]
[1743507291305,0.063,127.59,127.55,8.01186157]
[1743507291603,0.063,127.59,127.56,6.88]
[1743507291604,7.42933141,127.59,127.56,6.88]
[1743507293111,7.36633141,127.58,127.56,6.88]
[1743507293314,7.36633141,127.58,127.57,6.88]
[1743507294715,15.20473141,127.58,127.57,6.88]
[1743507295305,7.8384,127.58,127.57,6.88]
[1743507295719,15.20473141,127.58,127.57,6.88]
[1743507296115,15.20473141,127.58,127.55,0.03]
[1743507296312,15.20473141,127.58,127.56,6.88]
[1743507296808,15.26723141,127.59,127.57,225.74]
[1743507297118,7.42933141,127.59,127.57,225.74]
[1743507297421,15.26693141,127.59,127.57,225.74]
[1743507298014,7.9006,127.59,127.57,225.74]
[1743507299816,0.063,127.59,127.57,225.74]
[1743507301025,7.36633141,127.58,127.57,225.74]
[1743507301618,15.20453141,127.58,127.57,225.74]
[1743507302112,15.26723141,127.59,127.57,225.74]
[1743507303513,15.20453141,127.58,127.57,225.74]
[1743507303719,15.20453141,127.58,127.57,232.62]
[1743507304219,15.20453141,127.58,127.57,225.74]
[1743507304220,33.85418027,127.58,127.57,225.74]
[1743507304525,33.85418027,127.58,127.57,232.62]
[1743507307433,33.85418027,127.58,127.57,225.74]
[1743507307743,33.85418027,127.58,127.57,232.62]
[1743507310507,33.85418027,127.58,127.56,0.03]
[1743507310508,18.64964886,127.57,127.56,0.03]
[1743507310706,26.01598027,127.57,127.56,225.81]
[1743507311711,26.01598027,127.57,127.56,232.69]
[1743507311906,7.36633141,127.57,127.56,232.69]
[1743507312111,26.01598027,127.57,127.56,232.69]
[1743507312409,26.48904886,127.56,127.55,0.03]
[1743507312611,33.85538027,127.56,127.55,225.81]
[1743507313225,82.91930591,127.56,127.52,0.03]
[1743507313532,7.36633141,127.53,127.52,0.03]
[1743507313732,7.36633141,127.53,127.52,6.91]
[1743507313912,26.01598027,127.53,127.52,6.91]
[1743507314309,26.01598027,127.55,127.52,6.91]
[1743507314632,7.36633141,127.56,127.52,6.91]
[1743507314925,7.36633141,127.56,127.52,14.7517]
[1743507315132,7.9008,127.59,127.53,1.72486157]
[1743507315429,15.26713141,127.59,127.53,1.72486157]
[1743507316810,15.26713141,127.59,127.54,233.6406]
[1743507317010,7.36633141,127.58,127.54,225.8]
[1743507317419,7.36633141,127.57,127.54,225.8]
[1743507317820,11.50851514,127.57,127.54,225.8]